fUSD/lending_fUSD_20251001
["ID","MTS","AMOUNT","RATE_DAILY","PERIOD"]
[388636749,1759281067237,-500.0,0.00024931,2]
[388636750,1759281067246,-3703.76,0.00024931,2]
[388636751,1759281067256,-1777.57,0.00024931,2]
[388636752,1759281067266,-10908.21,0.00024931,2]
[388636753,1759281067276,-500.0,0.00024931,2]
[388636754,1759281067286,-2351.10031415,0.00024931,2]
[388636755,1759281067303,-5521.97968585,0.00024931,2]
[388636756,1759281067312,-321.33213289,0.00024931,2]
[388636757,1759281067341,-457.47500827,0.00024931,2]
[388636758,1759281067352,-290.21285884,0.00024931,2]
[388636759,1759281067363,-500.0,0.00024931,2]
[388636760,1759281067372,-218.14714116,0.00024931,2]
[388636761,1759281068573,-806.6,0.00024657,2]
[388636762,1759281068598,-897.08285884,0.00024931,2]
[388636763,1759281068608,-803.82,0.00024931,2]
[388636764,1759281068620,-9693.08,0.00024931,2]
[388636765,1759281068638,-867.36,0.00024931,2]
[388636766,1759281068659,-500.0,0.00024931,2]
[388636767,1759281068679,-2841.53,0.00024931,2]
[388636768,1759281068689,-500.0,0.00024931,2]
[388636769,1759281068699,-500.0,0.00024931,2]
[388636770,1759281068708,-500.0,0.00024931,2]
[388636771,1759281068718,-1583.8,0.00024931,2]
[388636772,1759281068727,-500.0,0.00024931,2]
[388636773,1759281068736,-500.0,0.00024931,2]
[388636774,1759281068745,-3228.92,0.00024931,2]
[388636775,1759281068755,-2418.14,0.00024931,2]
[388636776,1759281068764,-5803.62,0.00024931,2]
[388636777,1759281068774,-500.0,0.00024931,2]
[388636778,1759281068783,-500.0,0.00024931,2]
[388636779,1759281068794,-500.0,0.00024931,2]
[388636780,1759281068803,-968.87,0.00024931,2]
[388636781,1759281068812,-6660.32,0.00024931,2]
[388636782,1759281068821,-500.0,0.00024931,2]
[388636783,1759281068831,-500.0,0.00024931,2]
[388636784,1759281068841,-2431.63,0.00024931,2]
[388636785,1759281068850,-1836.14,0.00024931,2]
[388636786,1759281068859,-548.8,0.00024931,2]
[388636787,1759281068868,-2355.82,0.00024931,2]
[388636788,1759281068879,-12.93449887,0.00024931,2]
[388636789,1759281073263,-1341.75555361,0.00024931,2]
[388636790,1759281073274,-251.80008374,0.00024931,2]
[388636792,1759281205234,-206.60520624,0.00017279,2]
[388636794,1759281453570,158.31,0.00011022,2]
[388636795,1759281453765,158.31,0.00011809,2]
[388636796,1759281454013,158.31,0.00012596,2]
[388636797,1759281454236,158.31,0.00013384,2]
[388636798,1759281454441,158.31,0.00014171,2]
[388636799,1759281454648,158.31,0.00014958,2]
[388636800,1759281454864,158.31,0.00015746,2]
[388636801,1759281455074,158.31,0.00016533,2]
[388636802,1759281619089,150.45,0.00030137,120]
[388636803,1759281956072,2033.0,0.00030137,120]
[388636817,1759282232344,-1200.0,0.00016899,2]
[388636818,1759282232354,-23451.43049204,0.000169,2]
[388636819,1759282232363,-389.59780984,0.00016913,2]
[388636820,1759282232373,-250.0,0.00016925,2]
[388636821,1759282232383,-2000.0,0.0001695,2]
[388636822,1759282232392,-550.0,0.00016999,2]
[388636823,1759282232403,-35940.25336668,0.00017,2]
[388636824,1759282232412,-327.71544043,0.00017047,2]
[388636825,1759282232423,-1996.47037508,0.00017147,2]
[388636826,1759282232432,-151.0,0.00017269,2]
[388636827,1759282232441,-200.0,0.00017269,2]
[388636828,1759282232452,-151.0,0.00017269,2]
[388636829,1759282232462,-151.0,0.00017269,2]
[388636830,1759282232471,-151.0,0.00017269,2]
[388636831,1759282232480,-151.0,0.00017269,2]
[388636832,1759282232491,-151.0,0.00017269,2]
[388636833,1759282232500,-151.0,0.00017269,2]
[388636834,1759282232511,-151.0,0.00017269,2]
[388636835,1759282232521,-259.42119094,0.00017269,2]
[388636836,1759282232530,-151.0,0.00017269,2]
[388636837,1759282232540,-151.0,0.00017269,2]
[388636838,1759282232550,-151.0,0.00017269,2]
[388636839,1759282232559,-151.0,0.00017269,2]
[388636840,1759282232570,-200.0,0.00017269,2]
[388636841,1759282232580,-151.0,0.00017269,2]
[388636842,1759282232589,-151.0,0.00017269,2]
[388636843,1759282232598,-151.0,0.00017269,2]
[388636844,1759282232607,-151.0,0.00017269,2]
[388636845,1759282232618,-151.0,0.00017269,2]
[388636846,1759282232628,-151.0,0.00017269,2]
[388636847,1759282232638,-151.0,0.00017269,2]
[388636848,1759282232647,-151.0,0.00017269,2]
[388636849,1759282232656,-151.0,0.00017269,2]
[388636850,1759282232666,-151.0,0.00017269,2]
[388636851,1759282232676,-151.0,0.00017269,2]
[388636852,1759282232686,-151.0,0.00017269,2]
[388636853,1759282232695,-151.0,0.00017269,2]
[388636854,1759282232706,-151.0,0.00017269,2]
[388636855,1759282232716,-151.0,0.00017269,2]
[388636856,1759282232725,-151.0,0.00017269,2]
[388636857,1759282232735,-151.0,0.00017269,2]
[388636858,1759282232745,-151.0,0.00017269,2]
[388636859,1759282232755,-151.0,0.00017269,2]
[388636860,1759282232764,-200.0,0.00017269,2]
[388636862,1759282232773,-151.0,0.00017269,2]
[388636864,1759282232783,-157.82135318,0.00017269,2]
[388636866,1759282232792,-151.0,0.00017269,2]
[388636868,1759282232802,-151.0,0.00017269,2]
[388636870,1759282232813,-1064.26179376,0.00017279,2]
[388636872,1759282232822,-319.298,0.00017279,2]
[388636874,1759282232832,-2000.0,0.00017279,2]
[388636876,1759282232841,-2000.0,0.00017279,2]
[388636878,1759282232850,-468.887,0.00017279,2]
[388636880,1759282232859,-2000.0,0.00017279,2]
[388636882,1759282232868,-2000.0,0.00017279,2]
[388636883,1759282232877,-1512.378,0.00017279,2]
[388636885,1759282232886,-441.94,0.00017279,2]
[388636886,1759282232896,-229.43,0.00017279,2]
[388636887,1759282232906,-158.31,0.0001732,2]
[388636888,1759282232915,-702.97766933,0.00017362,2]
[388636889,1759282232924,-702.97766933,0.00017378,2]
[388636890,1759282232933,-208.70951313,0.00017388,2]
[388636891,1759282232943,-702.97766933,0.00017391,2]
[388636892,1759282232952,-208.70951313,0.00017436,2]
[388636893,1759282232962,-208.70951313,0.00017445,2]
[388636894,1759282232971,-702.97766933,0.00017447,2]
[388636895,1759282232980,-702.97766933,0.00017466,2]
[388636896,1759282232991,-208.70951313,0.00017475,2]
[388636897,1759282233002,-208.70951313,0.00017483,2]
[388636898,1759282233014,-441.94,0.00017553,2]
[388636899,1759282233023,-200.0,0.00017817,2]
[388636900,1759282233033,-441.94,0.00017827,2]
[388636901,1759282233043,-5202.69397632,0.00018,2]
[388636902,1759282233052,-441.94,0.00018101,2]
[388636903,1759282233062,-510.0,0.00018104,2]
[388636904,1759282233072,-158.31,0.00018107,2]
[388636905,1759282233081,-441.97,0.00018375,2]
[388636906,1759282233090,-191.31814289,0.000185,2]
[388636907,1759282233099,-228.388731,0.000185,2]
[388636908,1759282233108,-18075.78902386,0.000185,2]
[388636909,1759282233117,-527.69006045,0.00018544,2]
[388636910,1759282233127,-1680.0,0.00018551,2]
[388636911,1759282233136,-300.0,0.0001859,2]
[388636912,1759282233145,-150.0,0.0001859,2]
[388636913,1759282233156,-2000.0,0.0001859,2]
[388636914,1759282233166,-250.0,0.0001859,2]
[388636915,1759282233176,-300.0,0.0001859,2]
[388636916,1759282233185,-300.0,0.0001859,2]
[388636917,1759282233195,-191.31814289,0.000186,2]
[388636918,1759282233206,-228.388731,0.000187,2]
[388636919,1759282233217,-158.31,0.00018895,2]
[388636920,1759282233228,-228.388731,0.000189,2]
[388636921,1759282233238,-195.24026868,0.00019006,2]
[388636922,1759282233249,-195.0,0.00019006,2]
[388636923,1759282233260,-228.388731,0.000191,2]
[388636924,1759282233270,-228.388731,0.000193,2]
[388636925,1759282233279,-5200.85417279,0.000195,2]
[388636926,1759282233290,-220.64,0.000196,2]
[388636927,1759282233300,-158.31,0.00019682,2]
[388636928,1759282233311,-1000.0,0.00019692,2]
[388636929,1759282233320,-1006.29,0.000202,2]
[388636930,1759282233330,-157.14,0.00020261,2]
[388636931,1759282233341,-1033.38,0.000203,7]
[388636932,1759282233350,-500.0,0.00020331,2]
[388636933,1759282233360,-1251.27,0.00020419,2]
[388636934,1759282233369,-158.31,0.00020469,2]
[388636935,1759282233380,-666.0,0.00020507,3]
[388636936,1759282233390,-161.5932413,0.00020717,2]
[388636937,1759282233401,-1000.0,0.00020727,2]
[388636938,1759282233411,-158.31238966,0.00020815,2]
[388636939,1759282233421,-433.63302836,0.00020815,2]
[388636940,1759282233430,-500.0,0.00020815,2]
[388636941,1759282233439,-500.0,0.00020815,2]
[388636942,1759282233449,-500.0,0.00020815,2]
[388636943,1759282233459,-500.0,0.00020815,2]
[388636944,1759282233469,-500.0,0.00020815,2]
[388636945,1759282233480,-500.0,0.00020815,2]
[388636946,1759282233490,-500.0,0.00020815,2]
[388636947,1759282233500,-500.0,0.00020815,2]
[388636948,1759282233509,-536.71833701,0.00020815,2]
[388636949,1759282233520,-500.0,0.00020815,2]
[388636950,1759282233529,-500.0,0.00020815,2]
[388636951,1759282233538,-1584.0,0.00020816,2]
[388636952,1759282233549,-1306.0,0.00020816,2]
[388636953,1759282233558,-569.0,0.00020816,2]
[388636954,1759282233567,-603.0,0.00020816,2]
[388636955,1759282233576,-814.0,0.00020816,2]
[388636956,1759282233585,-899.0,0.00020816,2]
[388636957,1759282233595,-4233.0,0.00020816,2]
[388636958,1759282233604,-1180.0,0.00020816,2]
[388636959,1759282233613,-6255.763,0.00020816,2]
[388636960,1759282233622,-2051.299,0.00020816,2]
[388636961,1759282233632,-3410.753,0.00020816,2]
[388636962,1759282233642,-1000.0,0.0002101,2]
[388636963,1759282233651,-3623.3604582,0.00021252,2]
[388636964,1759282233660,-158.31,0.00021257,2]
[388636965,1759282233670,-9815.55,0.00021287,2]
[388636966,1759282233680,-5902.03736517,0.00021303,2]
[388636967,1759282233689,-3623.36045815,0.0002165,2]
[388636968,1759282233698,-172.36,0.0002169,2]
[388636969,1759282233708,-500.0,0.00021701,2]
[388636970,1759282233717,-1000.0,0.00021798,2]
[388636971,1759282233727,-592.50635714,0.00021832,2]
[388636972,1759282233735,-300.0,0.00021853,2]
[388636973,1759282233745,-300.0,0.00021853,2]
[388636974,1759282233754,-208.0,0.0002186,2]
[388636975,1759282233763,-208.0,0.00021884,2]
[388636976,1759282233772,-2641.91790713,0.000219,2]
[388636977,1759282233782,-287.28642286,0.000219,2]
[388636978,1759282233792,-247.66043137,0.000219,2]
[388636979,1759282233801,-263.45241494,0.000219,2]
[388636980,1759282233811,-5000.0,0.00021918,2]
[388636981,1759282233820,-208.0,0.00021932,2]
[388636982,1759282233833,-667.9,0.00021945,30]
[388636983,1759282233843,-151.0,0.00021997,2]
[388636984,1759282233852,-500.0,0.00021999,2]
[388636985,1759282233862,-194.53130069,0.00021999,2]
[388636986,1759282233871,-499754.50068321,0.00022,2]
[388636987,1759282233890,-4107.55056209,0.00022,2]
[388636988,1759282233902,-5603.99560223,0.00022,2]
[388636989,1759282233913,-889.96405998,0.00022,2]
[388636990,1759282233947,-400.0,0.00022,2]
[388636991,1759282233966,-10762.98002872,0.00022,2]
[388636997,1759282238343,-4114.0,0.00020816,2]
[388636998,1759282238352,-210.35574839,0.00021287,2]
[388636999,1759282238362,-55877.45261155,0.00022,2]
[388637000,1759282238374,-7893.57945193,0.00022,2]
[388637011,1759282240279,-14919.0332371,0.00022,2]
[388637012,1759282240289,-194.0,0.00022,2]
[388637013,1759282240299,-358.0,0.00022,2]
[388637014,1759282240308,-151.82,0.00022,2]
[388637015,1759282240317,-158.31,0.00022044,2]
[388637016,1759282240327,-915.56372045,0.00022047,2]
[388637023,1759282243330,-930.63,0.000203,7]
[388637024,1759282243342,-1267.879,0.00020816,2]
[388637025,1759282243352,-2377.23190909,0.00022047,2]
[388637026,1759282243365,-330.56482861,0.00022047,2]
[388637027,1759282243374,-166.04,0.0002205,2]
[388637028,1759282243386,-21.91983144,0.00022079,2]
[388637029,1759282243399,-178.08016856,0.00022079,2]
[388637030,1759282243409,-89.06983144,0.0002211,2]
[388637031,1759282243552,-285.06559965,0.0002211,2]
[388637032,1759282243566,-225.86456891,0.0002211,2]
[388637033,1759282243575,-194.0,0.00022192,7]
[388637034,1759282243585,-358.0,0.00022192,7]
[388637035,1759282243595,-1622.13543109,0.00022226,2]
[388637036,1759282243657,-288.38130189,0.00022226,2]
[388637055,1759282246907,-731.40117415,0.00022226,2]
[388637056,1759282246918,-68.59882585,0.00022261,2]
[388637057,1759282246940,-139.40117415,0.00022261,2]
[388637058,1759282246950,-157.14,0.00022287,2]
[388637059,1759282246961,-287.28642279,0.00022347,2]
[388637060,1759282246971,-208.0,0.00022362,2]
[388637061,1759282246982,-493.77,0.00022391,2]
[388637062,1759282246992,-263.45241494,0.00022436,2]
[388637063,1759282247002,-1073.69502077,0.00022445,2]
[388637064,1759282247091,-677.89291247,0.00022445,2]
[388637065,1759282247139,-695.29566091,0.00022445,2]
[388637066,1759282258202,-915.56372045,0.00020816,2]
[388637067,1759282265307,-158.31,0.00020816,2]
[388637068,1759282272326,-194.0,0.00020816,2]
[388637069,1759282279328,-358.0,0.00020816,2]
[388637070,1759282280249,800.0,0.00030137,120]
[388637071,1759282286295,-151.82,0.00020815,2]
[388637072,1759282293432,-191.31814288,0.000185,2]
[388637073,1759282293461,-348.18,0.00020815,2]
[388637074,1759282293492,-500.0,0.00020815,2]
[388637075,1759282293520,-427.57904436,0.00020815,2]
[388637076,1759282293539,-191.31814288,0.00020816,2]
[388637077,1759282293550,-348.18,0.00020816,2]
[388637078,1759282293561,-500.0,0.00020816,2]
[388637079,1759282293580,-427.57904436,0.00020816,2]
[388637080,1759282293591,-11984.87886262,0.00020816,2]
[388637081,1759282336384,624.7620784,0.000301,120]
[388637085,1759282367669,962.8216177,0.00030137,120]
[388637089,1759282568531,184.86,0.00010103,2]
[388637091,1759282688900,1782.270737,7.945e-05,2]
[388637092,1759282828799,-315.73909852,0.00017279,2]
[388637093,1759282836279,-427.57904436,0.00017279,2]
[388637094,1759282849000,-21.39285712,0.00017279,2]
[388637095,1759282849051,-109.03428576,0.00017439,2]
[388637096,1759282861249,-194.0,0.00017439,2]
[388637097,1759282868156,-116.71190184,0.00017439,2]
[388637098,1759282868180,-682.13991677,0.00017439,2]
[388637099,1759282880314,-154.18,0.00017459,2]
[388637100,1759282893132,-203.82,0.00017459,2]
[388637101,1759282904483,-191.31814288,0.00017459,2]
[388637102,1759282928490,-243.31814288,0.00017459,2]
[388637103,1759282941714,-184.26090148,0.00017459,2]
[388637104,1759282960464,3000.0,0.00030137,120]
[388637105,1759282967162,3000.0,0.00030137,120]
[388637106,1759282976745,3000.0,0.00030137,120]
[388637107,1759282982953,3000.0,0.00030137,120]
[388637108,1759282990289,3000.0,0.00030137,120]
[388637109,1759282997047,3000.0,0.00030137,120]
[388637110,1759283034883,3000.0,0.00030137,120]
[388637111,1759283042172,3000.0,0.00030137,120]
[388637112,1759283051567,1500.0,0.00030137,120]
[388637113,1759283057307,1500.0,0.00030137,120]
[388637114,1759283063235,1500.0,0.00030137,120]
[388637117,1759283231408,1500.0,0.00030137,120]
[388637118,1759283237917,1500.0,0.00030137,120]
[388637120,1759283251906,1500.0,0.00030137,120]
[388637121,1759283377965,5000.0,0.00030137,120]
[388637141,1759283431533,-124.98891713,0.00017459,2]
[388637142,1759283431544,-1101.88610437,0.00017466,2]
[388637143,1759283431553,-1101.88610437,0.00017473,2]
[388637144,1759283431563,-1101.88610437,0.00017494,2]
[388637145,1759283431572,-2000.0,0.00018758,2]
[388637146,1759283431584,-254.18631368,0.00018781,2]
[388637147,1759283431594,-370.35923647,0.00018826,2]
[388637148,1759283431603,-801.1742669,0.00018915,2]
[388637149,1759283431612,-198.78,0.00019303,2]
[388637150,1759283431622,-1000.0,0.00019305,2]
[388637151,1759283431631,-166.04,0.0001932,2]
[388637152,1759283431640,-666.0,0.00019332,3]
[388637153,1759283431650,-535.77,0.00019342,2]
[388637154,1759283431660,-1125.79,0.00019348,2]
[388637155,1759283431670,-150.0,0.00019468,7]
[388637156,1759283431679,-150.35458242,0.00019672,2]
[388637157,1759283431689,-188.95,0.00019892,2]
[388637158,1759283431700,-154.440088,0.00019999,2]
[388637159,1759283431749,-1045.559912,0.00019999,2]
[388637160,1759283431759,-10000.0,0.0002,2]
[388637161,1759283431768,-220.5892431,0.0002,2]
[388637162,1759283431778,-208.42152771,0.0002,2]
[388637163,1759283431787,-500.0,0.0002,2]
[388637164,1759283431796,-500.0,0.0002,2]
[388637165,1759283431805,-257.91178556,0.0002,2]
[388637166,1759283431814,-528.36,0.00020011,2]
[388637167,1759283431823,-534.36,0.00020011,2]
[388637168,1759283431833,-524.66,0.00020012,2]
[388637169,1759283431842,-515.37,0.00020012,2]
[388637170,1759283431851,-526.22,0.00020012,2]
[388637171,1759283431859,-518.61,0.00020012,2]
[388637172,1759283431868,-519.33,0.00020012,2]
[388637173,1759283431878,-520.21,0.00020012,2]
[388637174,1759283431887,-529.6,0.00020012,2]
[388637175,1759283431896,-526.46,0.00020012,2]
[388637176,1759283431905,-533.4,0.00020012,2]
[388637177,1759283431915,-525.4,0.00020012,2]
[388637178,1759283431924,-672.9463859,0.00020013,2]
[388637179,1759283431934,-151.04,0.00020013,2]
[388637180,1759283431944,-535.48,0.00020013,2]
[388637181,1759283431953,-150.27,0.00020013,2]
[388637182,1759283431963,-151.64,0.00020013,2]
[388637184,1759283431973,-528.93,0.00020013,2]
[388637186,1759283431983,-523.95,0.00020013,2]
[388637188,1759283431992,-535.12,0.00020013,2]
[388637190,1759283432002,-514.78,0.00020013,2]
[388637192,1759283432010,-525.98,0.00020014,2]
[388637194,1759283432020,-151.68,0.00020014,2]
[388637196,1759283432029,-152.5,0.00020014,2]
[388637198,1759283432038,-152.41,0.00020014,2]
[388637200,1759283432047,-150.92,0.00020014,2]
[388637202,1759283432056,-515.2,0.00020014,2]
[388637204,1759283432066,-150.5,0.00020014,2]
[388637206,1759283432075,-150.83,0.00020014,2]
[388637209,1759283432084,-533.79,0.00020014,2]
[388637211,1759283432094,-515.44,0.00020014,2]
[388637213,1759283432103,-520.81,0.00020032,2]
[388637215,1759283432112,-195.48,0.000201,2]
[388637218,1759283432121,-3390.24,0.00020206,2]
[388637220,1759283432130,-153.2,0.00020206,2]
[388637223,1759283432139,-198.78,0.00020268,2]
[388637225,1759283432148,-837.57,0.000203,7]
[388637226,1759283432157,-300.0,0.0002031,2]
[388637228,1759283432166,-506.30412368,0.00020609,2]
[388637230,1759283432175,-150.15653348,0.00020609,2]
[388637232,1759283432184,-250.0,0.00020609,2]
[388637234,1759283432193,-302.66372629,0.00020609,2]
[388637236,1759283432202,-2000.0,0.00020609,2]
[388637238,1759283432210,-162.25366525,0.00020717,2]
[388637240,1759283432219,-535.2,0.00020816,2]
[388637242,1759283432228,-535.19,0.00020816,2]
[388637244,1759283432237,-152.76,0.00020816,2]
[388637246,1759283432246,-307.4777,0.00020941,2]
[388637248,1759283432255,-3272.13827045,0.00020959,2]
[388637250,1759283432264,-3851.3452784,0.00020986,2]
[388637252,1759283432273,-1000.0,0.00020986,2]
[388637255,1759283432284,-500.0,0.0002104,2]
[388637256,1759283432293,-500.0,0.0002104,2]
[388637258,1759283432302,-500.0,0.0002104,2]
[388637260,1759283432311,-500.0,0.0002104,2]
[388637262,1759283432321,-500.0,0.0002104,2]
[388637265,1759283432331,-500.0,0.0002104,2]
[388637267,1759283432340,-500.0,0.0002104,2]
[388637269,1759283432349,-500.0,0.0002104,2]
[388637271,1759283432358,-500.0,0.0002104,2]
[388637273,1759283432366,-500.0,0.0002104,2]
[388637275,1759283432376,-500.0,0.0002104,2]
[388637277,1759283432385,-500.0,0.0002104,2]
[388637278,1759283432394,-500.0,0.0002104,2]
[388637280,1759283432403,-283.13918301,0.0002104,2]
[388637282,1759283432412,-500.0,0.0002104,2]
[388637284,1759283432421,-500.0,0.0002104,2]
[388637286,1759283432431,-500.0,0.0002104,2]
[388637288,1759283432441,-500.0,0.0002104,2]
[388637290,1759283432451,-167335.1403907,0.00021041,2]
[388637292,1759283432461,-567.279,0.00021059,2]
[388637294,1759283432470,-3725.392,0.00021059,2]
[388637297,1759283432490,-1000.0,0.00021187,2]
[388637299,1759283432501,-198.78,0.00021233,2]
[388637300,1759283432512,-5004.15730422,0.00021303,2]
[388637301,1759283432522,-3408.406,0.00021361,2]
[388637302,1759283432531,-790.335,0.00021361,2]
[388637303,1759283432540,-4249.0,0.00021361,2]
[388637304,1759283432550,-902.142,0.00021361,2]
[388637305,1759283432559,-1180.0,0.00021361,2]
[388637307,1759283432568,-18923.0,0.00021361,2]
[388637308,1759283432579,-4114.0,0.00021361,2]
[388637310,1759283432591,-6232.0,0.00021361,2]
[388637312,1759283432601,-3272.13827043,0.00021389,2]
[388637315,1759283432611,-150.4,0.00021493,2]
[388637317,1759283432622,-390.42462448,0.0002168,2]
[388637319,1759283432633,-277.36936582,0.000217,2]
[388637321,1759283432643,-150.0,0.00021722,2]
[388637323,1759283432653,-1000.0,0.00021773,2]
[388637325,1759283432665,-27823.3705018,0.00021795,2]
[388637327,1759283432676,-3452.2542535,0.00021795,2]
[388637329,1759283432685,-25659.9499,0.000218,2]
[388637331,1759283432695,-1000.0,0.000218,2]
[388637333,1759283432704,-3272.13827043,0.00021819,2]
[388637335,1759283432715,-856.42284569,0.00021822,2]
[388637337,1759283432725,-151.0,0.00021897,2]
[388637339,1759283432735,-134042.4086,0.000219,2]
[388637341,1759283432745,-5000.0,0.00021918,2]
[388637343,1759283432755,-856.4228457,0.00021941,2]
[388637345,1759283432764,-612.24,0.00021945,30]
[388637347,1759283432774,-869.7380073,0.00021988,2]
[388637349,1759283432785,-2669.25608404,0.00022,2]
[388637351,1759283432796,-160.0,0.00022,2]
[388637353,1759283432806,-170.0,0.00022,2]
[388637355,1759283432816,-346.0,0.00022,2]
[388637357,1759283432825,-375.0,0.00022,2]
[388637360,1759283432835,-152.11,0.00022,2]
[388637362,1759283432845,-600.0,0.0002211,2]
[388637364,1759283432855,-170.0,0.00022192,7]
[388637366,1759283432865,-346.0,0.00022192,7]
[388637368,1759283432874,-198.78,0.00022198,2]
[388637370,1759283432884,-191.23342231,0.00022249,2]
[388637372,1759283432894,-3272.13827043,0.0002225,2]
[388637374,1759283432904,-277.3693658,0.00022265,2]
[388637376,1759283432914,-1230.0,0.00022445,2]
[388637378,1759283432924,-1230.0,0.00022445,2]
[388637380,1759283432934,-1230.0,0.00022445,2]
[388637383,1759283432945,-1230.0,0.00022445,2]
[388637385,1759283432955,-1230.0,0.00022445,2]
[388637387,1759283432965,-1230.0,0.00022445,2]
[388637389,1759283432975,-1230.0,0.00022445,2]
[388637391,1759283432985,-1230.0,0.00022445,2]
[388637392,1759283432994,-151.0,0.00022445,2]
[388637395,1759283433004,-1230.0,0.00022445,2]
[388637397,1759283433014,-151.0,0.00022445,2]
[388637399,1759283433024,-151.0,0.00022445,2]
[388637401,1759283433033,-1230.0,0.00022445,2]
[388637403,1759283433043,-151.0,0.00022445,2]
[388637405,1759283433053,-1230.0,0.00022445,2]
[388637407,1759283433063,-151.0,0.00022445,2]
[388637409,1759283433073,-1230.0,0.00022445,2]
[388637411,1759283433082,-151.0,0.00022445,2]
[388637413,1759283433091,-1230.0,0.00022445,2]
[388637415,1759283433101,-151.0,0.00022445,2]
[388637417,1759283433111,-1230.0,0.00022445,2]
[388637419,1759283433122,-151.0,0.00022445,2]
[388637421,1759283433131,-1230.0,0.00022445,2]
[388637424,1759283433141,-151.0,0.00022445,2]
[388637426,1759283433152,-1230.0,0.00022445,2]
[388637428,1759283433162,-151.0,0.00022445,2]
[388637430,1759283433171,-1230.0,0.00022445,2]
[388637432,1759283433181,-151.0,0.00022445,2]
[388637434,1759283433191,-997.44667087,0.00022445,2]
[388637436,1759283433200,-151.0,0.00022445,2]
[388637438,1759283433210,-151.0,0.00022445,2]
[388637440,1759283433220,-151.0,0.00022445,2]
[388637442,1759283433229,-151.0,0.00022445,2]
[388637444,1759283433239,-151.0,0.00022445,2]
[388637446,1759283433248,-151.0,0.00022445,2]
[388637448,1759283433258,-151.0,0.00022445,2]
[388637450,1759283433268,-151.0,0.00022445,2]
[388637452,1759283433279,-151.0,0.00022445,2]
[388637454,1759283433288,-151.0,0.00022445,2]
[388637456,1759283433297,-151.0,0.00022445,2]
[388637458,1759283433307,-151.0,0.00022445,2]
[388637460,1759283433316,-151.0,0.00022445,2]
[388637462,1759283433326,-151.0,0.00022445,2]
[388637464,1759283433336,-151.0,0.00022445,2]
[388637466,1759283433346,-151.0,0.00022445,2]
[388637468,1759283433356,-151.0,0.00022445,2]
[388637470,1759283433365,-159.30599452,0.00022445,2]
[388637472,1759283433374,-151.0,0.00022445,2]
[388637474,1759283433384,-151.0,0.00022445,2]
[388637476,1759283433393,-151.0,0.00022445,2]
[388637478,1759283433402,-151.0,0.00022445,2]
[388637480,1759283433412,-193.6653536,0.00022445,2]
[388637482,1759283433422,-346.0,0.00022466,7]
[388637485,1759283433432,-1000.0,0.0002256,2]
[388637487,1759283433442,-150.0,0.00022579,2]
[388637489,1759283433452,-1000.0,0.000226,7]
[388637491,1759283433462,-208.0,0.00022651,2]
[388637493,1759283433471,-600.0,0.00022658,2]
[388637495,1759283433481,-156.66853606,0.0002266,4]
[388637497,1759283433491,-153.60662636,0.0002266,4]
[388637499,1759283433503,-208.0,0.00022673,2]
[388637501,1759283433513,-3272.13827043,0.0002268,2]
[388637503,1759283433522,-409.02884191,0.00022682,2]
[388637505,1759283433533,-1005.0,0.000227,2]